fUSD/lending_fUSD_20251110
["ID","MTS","AMOUNT","RATE_DAILY","PERIOD"]
[393537176,1762777907949,-1000.0,0.0004,30]
[393537177,1762777907990,-1000.0,0.0004,30]
[393537178,1762777908036,-1000.0,0.0004,30]
[393537179,1762777908080,-1000.0,0.0004,30]
[393537180,1762777908124,-502.17,0.0004,30]
[393537181,1762777908168,-3631.89750511,0.0004,120]
[393537182,1762777908211,-9296.35198464,0.0004,120]
[393537183,1762777908253,-5219.07641635,0.0004,120]
[393537184,1762777908293,-1009.0,0.0004,120]
[393537185,1762777908334,-4398.08192341,0.0004,120]
[393537186,1762777908375,-701.02329881,0.0004,120]
[393537187,1762777908416,-2674.06,0.0004,120]
[393537188,1762777908457,-807.51,0.0004,120]
[393537189,1762777908498,-571.64,0.0004,120]
[393537190,1762777908538,-251.05,0.0004,120]
[393537191,1762777908578,-808.43,0.0004,120]
[393537192,1762777908616,-485.1,0.0004,120]
[393537193,1762777908654,-925.58,0.0004,120]
[393537194,1762777908692,-537.11,0.0004,120]
[393537195,1762777908730,-215.14,0.0004,120]
[393537196,1762777908770,-576.39,0.0004,120]
[393537197,1762777908808,-187.7,0.0004,120]
[393537198,1762777908847,-1630.78053945,0.0004,120]
[393537199,1762777908885,-2000.0,0.0004,120]
[393537200,1762777909066,-2000.0,0.0004,120]
[393537201,1762777909113,-2432.21016953,0.0004,120]
[393537202,1762777909161,-150.0,0.00040056,120]
[393537203,1762777909207,-500.0,0.00040063,30]
[393537204,1762777909251,-150.0,0.00040317,120]
[393537205,1762777909293,-500.0,0.00040337,30]
[393537206,1762777909335,-465.44213811,0.000404,120]
[393537207,1762777909376,-1534.0161,0.00040463,75]
[393537208,1762777909415,-150.0,0.00040519,120]
[393537209,1762777909452,-500.0,0.00040611,30]
[393537210,1762777909495,-150.0,0.00040635,120]
[393537211,1762777909540,-500.0,0.00040885,30]
[393537212,1762777909587,-212.0,0.0004093,30]
[393537213,1762777909637,-2104.280186,0.00040959,120]
[393537214,1762777909684,-538.20661782,0.00041,30]
[393537215,1762777909727,-551.70374691,0.00041,30]
[393537216,1762777909769,-958.37,0.00041,120]
[393537217,1762777909808,-550.8001994,0.00041,30]
[393537218,1762777909846,-1942.10152337,0.00041,120]
[393537219,1762777909884,-412806.04298314,0.00041,30]
[393537220,1762777909924,-168.0,0.00041,90]
[393537221,1762777909965,-150.0,0.00041006,120]
[393537222,1762777910005,-150.0,0.00041023,120]
[393537223,1762777910046,-663.74,0.00041096,120]
[393537224,1762777910088,-1822.47,0.00041096,120]
[393537225,1762777910131,-762.0,0.000411,120]
[393537226,1762777910172,-252.41941323,0.00041104,60]
[393537227,1762777910213,-150.0,0.00041258,120]
[393537228,1762777910253,-1595.89,0.000414,30]
[393537229,1762777910292,-960.89,0.00041462,120]
[393537230,1762777910330,-177.01,0.000416,120]
[393537231,1762777910368,-177.01,0.000416,120]
[393537232,1762777910407,-177.01,0.000416,120]
[393537233,1762777910445,-465.44213811,0.000417,120]
[393537234,1762777910482,-89300.56999801,0.00041777,30]
[393537235,1762777910519,-421.47192072,0.00041999,120]
[393537236,1762777910555,-631.439076,0.00042,30]
[393537237,1762777910590,-489.75499526,0.00042,30]
[393537238,1762777910628,-523.60800443,0.00042,30]
[393537239,1762777910666,-50000.0,0.00042,50]
[393537240,1762777910704,-29074.64983172,0.00042,30]
[393537241,1762777910742,-383.01044712,0.00042,120]
[393537242,1762777910781,-313.82158786,0.00042,120]
[393537243,1762777910821,-834.65998717,0.00042,120]
[393537244,1762777910862,-924.91479883,0.00042,120]
[393537245,1762777910901,-227.36763348,0.00042,120]
[393537246,1762777910941,-2046.0,0.00042,120]
[393537247,1762777910984,-200.0,0.00042,120]
[393537248,1762777911027,-157.13655122,0.00042,120]
[393537249,1762777911071,-1770.67012562,0.00042121,120]
[393537250,1762777911115,-335.95191,0.00042459,120]
[393537251,1762777911157,-6089.0,0.000425,120]
[393537252,1762777911196,-511.24643562,0.000425,120]
[393537253,1762777911237,-9006.86002302,0.000425,120]
[393537254,1762777911278,-524.5,0.000425,30]
[393537255,1762777911316,-307.74323206,0.000427,90]
[393537256,1762777911354,-468.89847654,0.00042799,120]
[393537257,1762777911395,-192.49013802,0.00042799,120]
[393537258,1762777911433,-199.40681239,0.00042799,120]
[393537259,1762777911473,-450.0,0.000428,120]
[393537260,1762777911513,-263.56,0.000428,120]
[393537261,1762777911553,-13872.98919895,0.000428,120]
[393537262,1762777911592,-361.79534335,0.000428,60]
[393537263,1762777911635,-465.44213811,0.000429,120]
[393537264,1762777911675,-212.0,0.0004295,30]
[393537265,1762777911713,-1969.42230374,0.00043,120]
[393537266,1762777911753,-1352.63890784,0.00043,120]
[393537267,1762777911791,-150.0,0.00043,120]
[393537268,1762777911828,-188.15225411,0.00043,120]
[393537269,1762777911866,-2878.60688777,0.00043,120]
[393537270,1762777911903,-4888.45386453,0.00043,120]
[393537271,1762777911940,-2407.23726001,0.00043,120]
[393537272,1762777911980,-178.38536755,0.00043,120]
[393537273,1762777912024,-1595.89,0.00043,30]
[393537274,1762777912069,-203.82,0.00043014,120]
[393537275,1762777912111,-707.08287338,0.000431,120]
[393537276,1762777912156,-524.5,0.000431,30]
[393537277,1762777912197,-657.69384528,0.0004312,120]
[393537278,1762777912363,-1520.16511717,0.000432,120]
[393537279,1762777912412,-1267.7756,0.0004322,30]
[393537280,1762777912455,-1187.94130632,0.0004328,120]
[393537281,1762777912495,-571.91663503,0.000433,120]
[393537282,1762777912536,-1530.8845634,0.000433,120]
[393537283,1762777912575,-108136.351,0.00043444,30]
[393537284,1762777912613,-180.37988714,0.000435,120]
[393537285,1762777912651,-1052.57028435,0.00043562,120]
[393537286,1762777912690,-458.9411621,0.000437,120]
[393537287,1762777912729,-450.0,0.000438,120]
[393537288,1762777912769,-450.0,0.000438,120]
[393537289,1762777912809,-450.0,0.000438,120]
[393537290,1762777912849,-450.0,0.000438,120]
[393537291,1762777912888,-450.0,0.000438,120]
[393537292,1762777912927,-462.07563063,0.000438,120]
[393537293,1762777912967,-50834.24695232,0.000438,30]
[393537294,1762777913006,-516.02,0.000438,120]
[393537295,1762777913045,-445.0,0.00043986,120]
[393537296,1762777913086,-2519.80408433,0.00043987,120]
[393537297,1762777913129,-791.73381,0.00043999,120]
[393537298,1762777913174,-512.54526496,0.00044,120]
[393537299,1762777913218,-324.0,0.00044,30]
[393537300,1762777913261,-811.0,0.00044,120]
[393537301,1762777913301,-733.6336437,0.00044,30]
[393537302,1762777913340,-224.12100861,0.00044,120]
[393537303,1762777913382,-1048.64507391,0.00044,120]
[393537304,1762777913422,-490.93474373,0.00044,120]
[393537305,1762777913463,-160.19494552,0.00044,120]
[393537306,1762777913504,-150.0,0.00044,120]
[393537307,1762777913544,-155.0,0.00044,120]
[393537308,1762777913585,-153.0,0.00044,120]
[393537309,1762777913627,-200.0,0.00044,120]
[393537310,1762777913670,-1089.3,0.00044,120]
[393537311,1762777913713,-3023.08241801,0.00044,120]
[393537312,1762777913755,-700.0,0.00044,120]
[393537313,1762777913795,-436.562627,0.00044,57]
[393537314,1762777913837,-246.92,0.00044,30]
[393537315,1762777913879,-465.44213811,0.000442,120]
[393537316,1762777913921,-158.35501805,0.0004425,120]
[393537317,1762777913964,-1500.0,0.00044388,120]
[393537318,1762777914009,-207.08003794,0.00044398,120]
[393537319,1762777914053,-818.15445709,0.000445,120]
[393537320,1762777914099,-686.13852862,0.000445,120]
[393537321,1762777914144,-500.0,0.000445,120]
[393537322,1762777914191,-153.0,0.000447,120]
[393537323,1762777914238,-1595.89,0.000447,30]
[393537324,1762777914283,-512.88840152,0.0004489,120]
[393537325,1762777914326,-637.14123748,0.000449,30]
[393537326,1762777914371,-759.75388298,0.000449,120]
[393537327,1762777914414,-154.59,0.000449,120]
[393537328,1762777914457,-322.38500066,0.000449,120]
[393537329,1762777914500,-212.0,0.0004496,30]
[393537330,1762777914543,-445.0,0.00044986,120]
[393537331,1762777914588,-1204.210245,0.00044998,120]
[393537332,1762777914632,-1000.0,0.00044999,120]
[393537333,1762777914676,-50000.0,0.00045,45]
[393537334,1762777914721,-166.5519739,0.00045,30]
[393537335,1762777914766,-318.93498642,0.00045,60]
[393537336,1762777914811,-156.9,0.00045,85]
[393537337,1762777914860,-1000000.0,0.00045,120]
[393537338,1762777914909,-1000000.0,0.00045,120]
[393537339,1762777914958,-781.38652288,0.00045,120]
[393537340,1762777915008,-766.17039078,0.00045,120]
[393537341,1762777915056,-2143.67808886,0.00045,120]
[393537342,1762777915101,-1769.61185472,0.00045,120]
[393537343,1762777915146,-1323.99837495,0.00045,120]
[393537344,1762777915189,-171.60395224,0.00045,120]
[393537345,1762777915232,-1355.80840497,0.00045,120]
[393537346,1762777915274,-407.0,0.00045,120]
[393537347,1762777915314,-11434.51947688,0.00045,120]
[393537348,1762777915354,-50426.25951643,0.00045,120]
[393537349,1762777915397,-5924.36915597,0.00045,120]
[393537350,1762777915437,-1005.8719997,0.00045,30]
[393537351,1762777915476,-1000.0,0.00045,120]
[393537352,1762777915515,-150.0,0.00045,120]
[393537353,1762777915553,-335.0,0.00045,60]
[393537354,1762777915720,-155.0,0.00045,120]
[393537355,1762777915772,-6900.0,0.00045,120]
[393537356,1762777915820,-1995.959073,0.00045,120]
[393537357,1762777915867,-228.30714772,0.00045,120]
[393537358,1762777915911,-635.80063811,0.00045,120]
[393537359,1762777915960,-49638.01586695,0.00045,120]
[393537360,1762777916509,-336.81,0.00021719,2]
[393537361,1762777916518,-409.227,0.00022562,7]
[393537362,1762777916527,-336.81,0.00022596,2]
[393537363,1762777916537,-336.81,0.00023473,2]
[393537364,1762777916547,-170.88129443,0.00023891,2]
[393537365,1762777916556,-122.1649184,0.00024349,2]
[393537366,1762777916568,-214.6450816,0.00024349,2]
[393537367,1762777916577,-336.81,0.00025226,2]
[393537368,1762777916587,-254.3929184,0.00026103,2]
[393537369,1762777916635,-82.4170816,0.00026103,2]
[393537370,1762777916644,-150.99,0.00026103,2]
[393537371,1762777916654,-39.29136943,0.00026676,2]
[393537372,1762777916665,-186.69863057,0.00026676,2]
[393537373,1762777916675,-336.81,0.00026979,2]
[393537374,1762777916684,-248.86801134,0.00027096,2]
[393537375,1762777916696,-251.13198866,0.00027096,2]
[393537376,1762777916705,-336.81,0.00027856,2]
[393537377,1762777916714,-336.81,0.00028733,2]
[393537378,1762777916723,-336.81,0.00029609,2]
[393537379,1762777916733,-569.0,0.00030082,2]
[393537380,1762777916742,-336.81,0.00030486,2]
[393537381,1762777916751,-90.47250414,0.00030554,14]
[393537382,1762777916763,-528.61749586,0.00030554,14]
[393537383,1762777916772,-151.0,0.00030554,2]
[393537384,1762777916781,-151.0,0.00030554,2]
[393537385,1762777916790,-151.0,0.00030554,2]
[393537386,1762777916799,-151.0,0.00030554,2]
[393537387,1762777916809,-151.0,0.00030554,2]
[393537388,1762777916819,-151.0,0.00030554,2]
[393537389,1762777916828,-151.0,0.00030554,2]
[393537390,1762777916836,-151.0,0.00030554,2]
[393537391,1762777916846,-151.0,0.00030554,2]
[393537392,1762777916855,-151.0,0.00030554,2]
[393537393,1762777916864,-235.23310324,0.00030554,2]
[393537394,1762777916874,-500.0,0.00030571,2]
[393537395,1762777916883,-378.79929691,0.00030571,2]
[393537396,1762777916893,-240.80880163,0.00030571,2]
[393537397,1762777916902,-30346.07,0.00030572,2]
[393537398,1762777916911,-619.09,0.00030828,14]
[393537399,1762777916921,-846.83,0.0003086,2]
[393537400,1762777916931,-168.34,0.00030958,2]
[393537401,1762777916940,-619.09,0.00031102,14]
[393537402,1762777916950,-420.73,0.00031303,2]
[393537403,1762777916959,-336.81,0.00031363,2]
[393537404,1762777916969,-619.09,0.00031376,14]
[393537405,1762777916978,-5000.0,0.00031537,2]
[393537406,1762777916987,-619.09,0.0003165,14]
[393537407,1762777916996,-2000.0,0.000318,2]
[393537408,1762777917005,-619.14,0.00031924,14]
[393537409,1762777917015,-336.81,0.00032239,2]
[393537410,1762777917024,-336.81,0.00033116,2]
[393537411,1762777917033,-225.99,0.00033165,2]
[393537412,1762777917043,-168.34,0.00033513,2]
[393537413,1762777917052,-1016.0,0.00033566,2]
[393537414,1762777917062,-1019.0,0.00033662,2]
[393537415,1762777917071,-221.8861932,0.00033729,2]
[393537416,1762777917081,-300.0,0.00033784,10]
[393537417,1762777917090,-300.0,0.00033784,10]
[393537418,1762777917100,-314.50635683,0.00033784,10]
[393537419,1762777917109,-666.0,0.00033784,10]
[393537420,1762777917119,-1016.0,0.00033789,2]
[393537421,1762777917129,-1000.0,0.00033993,2]
[393537422,1762777917138,-336.81,0.00033993,2]
[393537423,1762777917149,-300.0,0.00033999,10]
[393537424,1762777917159,-300.0,0.00033999,10]
[393537425,1762777917169,-666.0,0.00033999,10]
[393537426,1762777917177,-221.8861932,0.00034078,2]
[393537427,1762777917187,-1110.9098,0.000341,2]
[393537428,1762777917196,-1016.0,0.00034173,2]
[393537429,1762777917206,-151.15285525,0.00034174,2]
[393537430,1762777917216,-894.01797964,0.00034214,2]
[393537431,1762777917226,-174.96763008,0.00034228,2]
[393537432,1762777917235,-2674.6783,0.00034228,2]
[393537433,1762777917245,-4763.8105,0.00034228,2]
[393537434,1762777917254,-2500.0,0.00034238,2]
[393537435,1762777917264,-10786.3623376,0.00034262,2]
[393537436,1762777917273,-438.01559452,0.00034262,15]
[393537437,1762777917283,-300.0,0.00034263,10]
[393537438,1762777917292,-300.0,0.00034263,10]
[393537439,1762777917302,-666.0,0.00034263,10]
[393537440,1762777917311,-1016.0,0.00034326,2]
[393537441,1762777917320,-208.50505929,0.00034327,7]
[393537442,1762777917329,-209.2828048,0.00034327,7]
[393537443,1762777917339,-405.82492758,0.00034327,7]
[393537444,1762777917348,-27274.59532165,0.00034328,3]
[393537445,1762777917361,-2293.64959002,0.00034328,3]
[393537446,1762777917377,-987.27374557,0.00034328,3]
[393537447,1762777917388,-326.74106052,0.00034328,3]
[393537448,1762777917399,-329.67448229,0.00034328,3]
[393537449,1762777917413,-800.8000002,0.00034328,3]
[393537450,1762777917487,-70802.00091039,0.00034328,3]
[393537451,1762777917618,-413.04318526,0.00034328,3]
[393537452,1762777917629,-1400.0,0.00034328,3]
[393537453,1762777917699,-176.96520198,0.00023792,2]
[393537454,1762777917708,-18444.54091897,0.00034328,3]
[393537455,1762777917800,-254.5674,0.00034328,3]
[393537456,1762777917811,-51025.40199999,0.00034328,3]
[393537457,1762777917922,-88.11841804,0.00034328,3]
[393537458,1762777917942,-261.55836529,0.00034328,3]
[393537470,1762778657116,250.0,0.00017,2]
[393537481,1762779032317,-151.0,0.00023,2]
[393537482,1762779032327,-195.0,0.000253,120]
[393537483,1762779032337,-151.0,0.000285,2]
[393537484,1762779032347,-151.0,0.0003,5]
[393537485,1762779032356,-208.3313,0.00030473,2]
[393537486,1762779032366,-151.0,0.00032,7]
[393537487,1762779032375,-155.56,0.00032712,7]
[393537488,1762779032385,-168.0,0.00032712,2]
[393537489,1762779032394,-200.0,0.00033009,2]
[393537490,1762779032404,-163.69,0.00033153,2]
[393537491,1762779032413,-277.0,0.00033243,3]
[393537492,1762779032423,-11479.03,0.00033244,2]
[393537493,1762779032433,-1000.0,0.00033431,2]
[393537494,1762779032442,-580.75,0.00033431,10]
[393537495,1762779032451,-8251.37123826,0.00033431,2]
[393537518,1762779038102,-440.95876174,0.00033431,2]
[393537519,1762779038112,-213.98,0.00033601,2]
[393537520,1762779038122,-152.0,0.00033766,3]
[393537528,1762779038313,-300.0,0.00033784,10]
[393537530,1762779038323,-300.0,0.00033784,10]
[393537532,1762779038333,-666.0,0.00033784,10]
[393537534,1762779038342,-168.0,0.00033856,2]
[393537536,1762779038352,-300.0,0.00033999,10]
[393537538,1762779038361,-300.0,0.00033999,10]
[393537540,1762779038371,-666.0,0.00033999,10]
[393537543,1762779038380,-2500.0,0.00034038,2]
[393537546,1762779038390,-394.21403514,0.00034128,15]
[393537549,1762779038400,-9723.71765626,0.00034128,2]
[393537551,1762779038409,-4217.98937881,0.00034128,2]
[393537553,1762779038420,-174.96763004,0.00034128,2]
[393537555,1762779038430,-1806.84145276,0.00034128,3]
[393537557,1762779038442,-23901.89960622,0.00034128,3]
[393537678,1762779040140,-1036.1682,0.00034128,3]
[393537680,1762779040251,-2118.8,0.00034128,3]
[393537681,1762779040263,-1797.50000005,0.00034128,3]
[393537682,1762779040274,-623.51413235,0.00034128,3]
[393537702,1762779043323,-42443.40227022,0.00034128,3]
[393537703,1762779043332,-1331.71428217,0.00034135,2]
[393537704,1762779043342,-151.0,0.00034135,14]
[393537705,1762779043352,-704.896,0.00034137,38]
[393537706,1762779043361,-284.0774493,0.00034137,7]
[393537707,1762779043370,-125336.79121608,0.00034138,2]
[393537708,1762779043381,-858.41742724,0.00034138,2]
[393537723,1762779594008,180.79,0.00013699,2]
[393537736,1762780156100,-180.79,0.00020187,2]
[393537737,1762780156124,-180.79,0.00026676,2]
[393537738,1762780156146,-93.81922445,0.00030242,2]
[393537739,1762780168214,158.09,0.00017005,2]
[393537762,1762780232399,-158.09,0.00019338,2]
[393537763,1762780232409,-158.09,0.00021672,2]
[393537764,1762780232420,-158.09,0.00024006,2]
[393537765,1762780232429,-158.09,0.0002634,2]
[393537766,1762780232438,-158.09,0.00028674,2]
[393537767,1762780232448,-5516.0,0.000298,3]
[393537768,1762780232458,-949.93,0.00030269,2]
[393537769,1762780232469,-500.0,0.00030269,2]
[393537770,1762780232479,-5516.0,0.000306,5]
[393537771,1762780232489,-158.09,0.00031008,2]
[393537772,1762780232498,-400.0,0.00031199,3]
[393537773,1762780232508,-166.67,0.00032274,30]
[393537774,1762780232518,-168.0,0.00032333,2]
[393537775,1762780232527,-168.0,0.00032404,2]
[393537776,1762780232537,-601.0,0.00033,2]
[393537777,1762780232547,-150.0,0.00033009,2]
[393537778,1762780232556,-250.0,0.00033009,2]
[393537779,1762780232566,-152.83,0.00033009,2]
[393537780,1762780232575,-192.63,0.00033009,120]
[393537781,1762780232585,-563.916,0.00033009,34]
[393537782,1762780232595,-168.0,0.00033088,2]
[393537783,1762780232604,-168.0,0.00033099,2]
[393537784,1762780232614,-180.79,0.00033165,2]
[393537785,1762780232628,-926.02,0.00033267,30]
[393537786,1762780232637,-158.09,0.00033342,2]
[393537787,1762780232647,-999.0,0.00033342,3]
[393537788,1762780232658,-514.34,0.00033342,2]
[393537790,1762780232667,-1000.0,0.00033342,2]
[393537792,1762780232677,-169.19,0.00033578,2]
[393537794,1762780232687,-300.0,0.00033784,10]
[393537796,1762780232697,-429.21089253,0.00033784,10]
[393537798,1762780232707,-569.09185,0.000338,2]
[393537800,1762780232715,-5329.95983254,0.00033938,2]
[393537802,1762780232724,-9323.35187256,0.00033938,2]
[393537804,1762780232733,-1694.83101587,0.00033938,2]
[393537807,1762780232750,-1019.65051152,0.00033938,2]
[393537809,1762780232761,-536.42057261,0.00033938,2]
[393537811,1762780232771,-234.4756,0.00033938,2]
[393537813,1762780232781,-37.90382734,0.00033938,2]
[393537871,1762780238399,-242.02407266,0.00033938,2]
[393537872,1762780238409,-26.64498774,0.00033938,2]
[393537873,1762780238531,-518.92264709,0.00033938,2]
[393537874,1762780238543,-1798.68670579,0.00033938,2]
[393537878,1762780240349,-155.74565938,0.00033938,2]
[393537879,1762780240358,-224.04291797,0.00033973,5]
[393537880,1762780240406,-275.95708203,0.00033973,5]
[393537881,1762780240415,-178.14294969,0.00033973,5]
[393537882,1762780240427,-354.79263159,0.00033981,15]
[393537883,1762780240436,-148.57574437,0.00033981,2]
[393537884,1762780240464,-24.20504885,0.00033981,2]
[393537885,1762780240474,-300.0,0.00033999,10]
[393537886,1762780240483,-162.68202022,0.00034,3]
[393537887,1762780240493,-154.0,0.00034,120]
[393537888,1762780240502,-1670.639251,0.00034028,3]
[393537889,1762780240513,-9002.52611933,0.00034028,3]
[393537890,1762780240525,-349.15469951,0.00034028,3]
[393537891,1762780240537,-250.0,0.00034028,3]
[393537895,1762780246670,-3511.16177623,0.00034028,3]
[393537896,1762780246777,-416.71964522,0.00034028,3]
[393537926,1762780662949,-53945.4,0.00032,120]
[393537927,1762780662999,-250.0,0.00033,33]
[393537928,1762780663047,-150.99,0.00033867,30]
[393537929,1762780663095,-451.133,0.00033973,37]
[393537930,1762780663144,-500.0,0.00034027,30]
[393537931,1762780663194,-321.77499184,0.00034027,120]
[393537932,1762780663250,-515.14114772,0.00034027,120]
[393537933,1762780663300,-500.0,0.00034137,120]
[393537934,1762780663349,-336.65037138,0.00034137,120]
[393537935,1762780663402,-342.45739341,0.00034137,120]
[393537936,1762780663455,-187.29005742,0.00034327,120]
[393537937,1762780663509,-500.0,0.00034327,120]
[393537938,1762780663559,-500.0,0.00034327,120]
[393537939,1762780663608,-513.25695741,0.00034327,120]
[393537940,1762780663656,-506.79595996,0.00034327,120]
[393537941,1762780663704,-501.89874428,0.00034327,30]
[393537942,1762780663753,-500.0,0.00034327,120]
[393537943,1762780663805,-500.0,0.00034327,120]
[393537944,1762780663863,-500.0,0.00034327,120]
[393537945,1762780663922,-500.0,0.00034327,30]
[393537946,1762780663984,-500.0,0.00034327,120]
[393537947,1762780664045,-500.0,0.00034327,120]
[393537948,1762780664103,-150.0,0.00034327,60]
[393537949,1762780664157,-150.0,0.00034327,60]
[393537950,1762780664214,-150.0,0.00034327,60]
[393537951,1762780664269,-150.0,0.00034327,60]
[393537952,1762780664324,-150.0,0.00034327,60]
[393537953,1762780664376,-150.0,0.00034327,60]
[393537954,1762780664428,-150.0,0.00034327,60]
[393537955,1762780664480,-150.0,0.00034327,60]
[393537956,1762780664530,-200.0,0.00034327,60]
[393537957,1762780664579,-500.0,0.00034327,60]
[393537958,1762780664626,-150.0,0.00034327,60]
[393537959,1762780664672,-150.0,0.00034327,60]
[393537960,1762780664719,-150.0,0.00034327,60]
[393537961,1762780664767,-150.0,0.00034327,60]
[393537962,1762780664818,-150.0,0.00034464,60]
[393537963,1762780664865,-150.0,0.00034464,60]
[393537964,1762780664913,-150.0,0.00034464,60]
[393537965,1762780664960,-150.0,0.00034464,60]
[393537966,1762780665009,-250.0,0.00034464,60]
[393537967,1762780665058,-150.0,0.00034464,60]
[393537968,1762780665108,-150.0,0.00034464,60]
[393537969,1762780665157,-533.0,0.00034464,60]
[393537970,1762780665208,-150.0,0.00034464,60]
[393537971,1762780665267,-150.0,0.00034464,60]
[393537972,1762780665315,-150.0,0.00034464,60]
[393537973,1762780665363,-150.0,0.00034601,60]
[393537974,1762780665409,-152.34443913,0.00034601,60]
[393537975,1762780665454,-150.0,0.00034601,60]
[393537976,1762780665500,-150.0,0.00034601,60]
[393537977,1762780665543,-153.45223361,0.00034601,60]
[393537978,1762780665586,-178.38259742,0.00034601,60]
[393537979,1762780665630,-150.0,0.00034601,60]
[393537980,1762780665674,-150.0,0.00034601,60]
[393537981,1762780665719,-150.0,0.00034738,60]
[393537982,1762780665765,-249.99915622,0.00034738,60]
[393537983,1762780665816,-150.0,0.00034738,60]
[393537984,1762780665865,-150.0,0.00034738,60]
[393537985,1762780665914,-150.0,0.00034738,60]
[393537986,1762780665962,-231.3806178,0.00034875,60]
[393537987,1762780666009,-150.0,0.00034875,60]
[393537988,1762780666054,-150.0,0.00034875,60]
[393537989,1762780666103,-150.0,0.00034875,60]
[393537990,1762780666150,-162.10169917,0.00035012,60]
[393537991,1762780666197,-150.0,0.00035012,60]
[393537992,1762780666248,-2343.31,0.000358,60]
[393537993,1762780666493,-5000.0,0.00036333,30]
[393537994,1762780666544,-2000.0,0.00037501,120]
[393537995,1762780666591,-513.492223,0.00037501,120]
[393537996,1762780666639,-151.0,0.0003799,31]
[393537997,1762780666685,-151.0,0.0003799,31]
[393537998,1762780666729,-151.0,0.0003799,31]
[393537999,1762780666774,-153.279242,0.0003799,31]
[393538000,1762780666821,-153.64674,0.0003799,31]
[393538001,1762780666872,-151.0,0.00038,31]
[393538002,1762780666917,-151.0,0.00038,31]
[393538003,1762780666963,-247.39747,0.00038,31]
[393538004,1762780667009,-247.39747,0.00038,31]
[393538005,1762780667056,-247.39747,0.00038,31]
[393538006,1762780667101,-247.39747,0.00038,31]
[393538007,1762780667147,-151.0,0.00038,31]
[393538008,1762780667193,-151.0,0.00038,31]
[393538009,1762780667243,-156.291755,0.00038,31]
[393538010,1762780667291,-156.542144,0.00038,31]
[393538011,1762780667335,-151.0,0.00038,31]
[393538012,1762780667380,-151.0,0.00038,31]
[393538013,1762780667426,-944.56894104,0.00038356,120]
[393538014,1762780667470,-781.4722802,0.00038439,120]
[393538015,1762780667517,-151.33664607,0.000388,120]
[393538016,1762780667561,-151.33664607,0.000388,120]
[393538017,1762780667606,-151.33664607,0.000388,120]
[393538018,1762780667650,-151.33664607,0.000388,120]
[393538019,1762780667701,-151.33664607,0.000388,120]
[393538020,1762780667748,-151.33664607,0.000388,120]
[393538021,1762780667798,-151.33664607,0.000388,120]
[393538022,1762780667849,-209.8,0.000392,30]
[393538023,1762780667901,-193.9342242,0.000393,120]
[393538024,1762780667951,-151.0,0.00039451,120]
[393538025,1762780668000,-151.0,0.00039451,120]
[393538026,1762780668046,-247.39747,0.00039451,120]
[393538027,1762780668090,-247.39747,0.00039451,120]
[393538028,1762780668137,-247.39747,0.00039451,120]
[393538029,1762780668181,-247.39747,0.00039451,120]
[393538030,1762780668259,-151.0,0.00039455,120]
[393538031,1762780668304,-151.0,0.00039455,120]
[393538032,1762780668352,-151.0,0.00039455,120]
[393538033,1762780668400,-151.0,0.00039455,120]
[393538034,1762780668447,-151.0,0.00039455,120]